Cogmind - Beta 14 @@@ ROGUE MODE // 2024.08.29 @ 02:58:01 Player: J1ang-5h1 Result: Destroyed by L-41 Fighter with Axe Performance ------------- Evolutions (0) 0 Regions Visited (3) 600 Robots Destroyed (38) 190 Value Destroyed (772) 772 Prototype IDs (5) 100 Alien Tech Used (0) 0 Bonus (0) 0 TOTAL SCORE: 1662 Bonus ------- None Cogmind --------- Core Integrity 0/250 Matter 259/300 Energy 148/150 System Corruption 2% Temperature Cool (13) Movement Rolling (130) Ox2 Location -7/Recycling Parts ------- > --- POWER (1) -------- Micro Nuclear Core > --- PROPULSION (2) --- Compact Wheel Compact Wheel > --- UTILITY (2) ------ Huge Storage Unit Layered Light Armor Plating > --- WEAPON (2) ------- Medium Laser > --- INVENTORY (25) --- Subdweller Monowheel Subdweller Monowheel Armored Huge Wheel Heat Sink Huge Storage Unit Large Battery (200) High-capacity Matter Pod (200) Structural Scanner Subdweller Optics Sensor Array Signal Interpreter Improved Terrain Scanner Seismic Detector Transport Network Coupler Hardened Heavy Armor Plating Subdweller Laser Subdweller Laser Subdweller Laser Light Assault Rifle Light Assault Rifle Light Assault Rifle Light Cannon Heavy Flail Peak State ------------ > --- POWER ------------ Micro Nuclear Core > --- PROPULSION ------- Compact Wheel Compact Wheel > --- UTILITY ---------- Huge Storage Unit Layered Light Armor Plating > --- WEAPON ----------- Medium Laser Grenade Launcher > --- INVENTORY -------- Subdweller Monowheel Subdweller Monowheel Armored Huge Wheel Heat Sink Huge Storage Unit Large Battery High-capacity Matter Pod Structural Scanner Subdweller Optics Sensor Array Signal Interpreter Improved Terrain Scanner Seismic Detector Transport Network Coupler Hardened Heavy Armor Plating EM Pulse Gun Subdweller Laser Subdweller Laser Subdweller Laser Light Assault Rifle Light Assault Rifle Light Assault Rifle Light Cannon [Rating: 17] Favorites ----------- Power Light Ion Engine Engine Light Ion Engine Power Core Micro Nuclear Core Propulsion Compact Wheel Treads Light Treads Leg Aluminum Leg Wheel Compact Wheel Utility Huge Storage Unit Device Seismic Detector Storage Huge Storage Unit Protection Layered Light Armor Plating Weapon EM Pulse Gun Energy Gun EM Pulse Gun Ballistic Cannon Light Cannon Launcher Grenade Launcher Build | -11 -10 -10 -7 ------- Run | Yrd Mat Sub Rec Slots Evolved . | . . . . Power . | . . . . Propulsion . | . . . . Utility . | . . . . Weapon . | . . . . Parts Attached 46 | 2 16 24 4 Power 4 | . 2 1 1 Engine 3 | . 2 1 . Core 1 | . . . 1 Reactor . | . . . . Propulsion 9 | . 2 7 . Treads 2 | . . 2 . Leg . | . . . . Wheel 7 | . 2 5 . Hover . | . . . . Flight . | . . . . Utility 10 | 1 3 4 2 Device 8 | 1 2 4 1 Storage 1 | . 1 . . Processor . | . . . . Hackware . | . . . . Protection 1 | . . . 1 Artifact . | . . . . Weapon 23 | 1 9 12 1 Energy Gun 16 | 1 7 7 1 Energy Cannon . | . . . . Ballistic Gun . | . . . . Ballistic Cannon 1 | . . 1 . Launcher 6 | . 2 4 . Special Weapon . | . . . . Impact Weapon . | . . . . Slashing Weapon . | . . . . Piercing Weapon . | . . . . Special Melee Weapon . | . . . . Unidentified Prototypes . | . . . . Parts Lost 10 | . 2 7 1 Power 3 | . 1 2 . Propulsion 2 | . . 2 . Utility 1 | . . 1 . Weapon 4 | . 1 2 1 Highest Loss Streak 3 | . 1 3 1 To Critical Strikes . | . . . . Average Slot Usage (%) 90 | . 99 83 97 Engine 7 | . 13 3 . Treads 5 | . . 10 . Leg 6 | . 15 . . Wheel 15 | . 12 16 28 Device 11 | . 14 9 5 Storage 14 | . 14 14 14 Energy Gun 24 | . 27 23 14 Launcher 2 | . . 2 13 Peak Build Rating 17 | 7 9 12 17 Average Rating 9 | 6 8 10 15 On Entrance 8 | 6 7 9 10 Naked Turns . | . . . . Heaviest Build 95 | 13 88 89 95 Greatest Support 40 | 20 32 40 32 Greatest Overweight (x) 27 | . 4 27 2 Average Overweight (x) 2 | . 1 3 2 Largest Inventory Capacity 25 | 8 25 25 25 Average Capacity 23 | 8 21 25 25 Most Carried 25 | 8 25 25 25 Average Carried 20 | 6 14 24 24 Final Capacity 25 | 8 25 25 25 Final Carried 25 | 7 25 24 25 Class Distribution -------------------- 100% | Mutant Dominant Class ---------------- Mutant | -10/Materials Mutant | -10/Subcaves Mutant | -7/Recycling Resources | -11 -10 -10 -7 ----------- Run | Yrd Mat Sub Rec Matter Collected 1253 | 220 419 351 263 Remotely 49 | . . 49 . Salvage Created 1360 | 171 496 430 263 Parts 66 | 14 30 18 4 Haulers Intercepted 2 | . 2 . . Recyclers Shooed 3 | . . . 3 Parts Field Recycled . | . . . . Retrieved Matter . | . . . . Parts Self-Destructed 2 | . . 2 . Prevented . | . . . . Kills | -11 -10 -10 -7 ------- Run | Yrd Mat Sub Rec Combat Hostiles Destroyed 24 | . 11 13 . Guns 10 | . 4 6 . AOE 13 | . 6 7 . Classes Destroyed 9 | 2 5 2 . Builder 1 | . 1 . . Tunneler 4 | 4 . . . Hauler 2 | . 2 . . Recycler 4 | 1 1 . 2 Watcher 3 | . 3 . . Swarmer 10 | . 6 4 . Grunt 5 | . 5 . . Artisan 1 | . . 1 . Subdweller 9 | . . 9 . Best Kill Streak 5 | 3 5 4 2 Combat Bots Only 4 | . 3 4 . Max Kills in Single Turn 3 | 1 2 3 1 Gunslinging . | . . . . Exploded 3 | . 2 3 . Melee . | . . . . Uniques/NPCs Destroyed . | . . . . Combat | -11 -10 -10 -7 -------- Run | Yrd Mat Sub Rec Hostile Shots Fired 142 | . 42 65 35 Missed 56 | . 13 28 15 Damage Taken 1499 | . 419 855 225 Core 271 | . 45 156 70 Absorbed by Shields . | . . . . Regen/Repaired (Parts) 16 | . 16 . . Core Remaining (%) 100 | 100 . . . Volleys Fired 145 | 14 36 70 25 Largest 2 | 1 2 2 1 Hottest 100 | 50 100 100 50 Shots Fired 196 | 14 64 93 25 Gun 147 | 14 55 53 25 Cannon 14 | . . 14 . Launcher 35 | . 9 26 . Special . | . . . . Kinetic 14 | . . 14 . Thermal 83 | 14 29 15 25 Explosive 35 | . 9 26 . Electromagnetic 64 | . 26 38 . Robot Hit Streak 29 | 4 6 29 6 Robot Miss Streak 4 | 2 4 1 2 Penetration Max . | . . . . Secondary Targets . | . . . . Shots Hit Robots 124 | 9 40 58 17 Core Hits 69 | 6 29 27 7 Critical Kills . | . . . . Critical Parts Destroyed . | . . . . Critical Strikes 7 | 1 1 4 1 Burn 5 | 1 1 2 1 Corrupt 2 | . . 2 . Melee Attacks . | . . . . Impact . | . . . . Slashing . | . . . . Piercing . | . . . . Sneak Attacks . | . . . . Combat Hostiles . | . . . . Follow-up Attacks . | . . . . Damage Inflicted 2853 | 111 1191 1331 220 Guns 1433 | 111 559 543 220 Cannons . | . . . . Explosions 1420 | . 632 788 . Melee . | . . . . Ramming . | . . . . Kinetic . | . . . . Thermal 873 | 111 325 217 220 Explosive 1350 | . 592 758 . Electromagnetic 630 | . 274 356 . Impact . | . . . . Slashing . | . . . . Piercing . | . . . . Highest Corruption 2 | . 2 2 2 Average Corruption 2 | . 2 2 2 Corruption Purged . | . . . . Corruption Blocked . | . . . . Effects 32 | . 9 22 1 Message Errors 8 | . 3 5 . Matter Fused 10 | . 4 6 . Heat Flow Errors 5 | . . 5 . Energy Discharges 2 | . 1 1 . Data Loss (minor) 4 | . . 4 . Data Loss (major) 1 | . 1 . . Alerts 2 | . . 1 1 Overload Shots . | . . . . Overflow Damage 57 | . 50 7 . Projectiles . | . . . . Explosions 57 | . 50 7 . Melee . | . . . . Knockbacks . | . . . . Impact . | . . . . Kinetic . | . . . . Secondary . | . . . . Self-Inflicted Damage 136 | . 101 35 . Shots 6 | . 4 2 . Rammed . | . . . . Targets Rammed . | . . . . Kicked . | . . . . Crushed . | . . . . Highest Temperature 248 | 90 97 248 216 Average Temperature 56 | 39 33 88 84 Received Heat Transfer 288 | . 117 111 60 Siege Activations . | . . . . Robots Corrupted . | . . . . Combat Hostiles . | . . . . Parts Fried 6 | . 2 4 . Impact Corruptions . | . . . . Robots Melted 1 | . 1 . . Combat Hostiles 1 | . 1 . . Parts Melted 6 | . 4 2 . Heat Transferred 2788 | 407 888 753 740 Parts Sabotaged . | . . . . Parts Stolen . | . . . . Parts Stripped . | . . . . Power Chain Reactions 2 | . 1 1 . Alert | -11 -10 -10 -7 ------- Run | Yrd Mat Sub Rec Peak Influence 349 | 25 349 . 134 Initial 16 | . 16 . . Average 79 | 11 80 . 88 Maximum Alert Level 1 | . 1 . . Low Security (%) 93 | 100 92 . 100 Level 1 6 | . 7 . . Level 2 . | . . . . Level 3 . | . . . . Level 4 . | . . . . Level 5 . | . . . . High Security . | . . . . Max Security . | . . . . Squads Dispatched 3 | . 3 . . Investigation 2 | . 2 . . Extermination . | . . . . Reinforcement 1 | . 1 . . Assault . | . . . . Garrison . | . . . . Intercept . | . . . . Searches Triggered . | . . . . Construction Impeded . | . . . . Haulers Reinforced . | . . . . Active Scanning Responses . | . . . . Cargo Convoy Interrupts . | . . . . Stealth | -11 -10 -10 -7 --------- Run | Yrd Mat Sub Rec Distress Signals 2 | . 2 . . Communications Jammed . | . . . . Distress Signals . | . . . . Times Spotted 36 | . 17 13 6 Peak Tracking Total 6 | . 4 6 6 Tactical Retreats 2 | . 1 1 . Traps | -11 -10 -10 -7 ------- Run | Yrd Mat Sub Rec Traps Triggered 4 | . 2 2 . Indirectly . | . . . . Trap Hack Attempts . | . . . . Triggered . | . . . . Disarmed . | . . . . Reprogrammed . | . . . . Reused . | . . . . Traps Extracted . | . . . . Installed . | . . . . Triggered . | . . . . Machines | -11 -10 -10 -7 ---------- Run | Yrd Mat Sub Rec Machines Disabled 2 | . 2 . . Max in Single Turn 1 | . 1 . . Machines Repaired . | . . . . Machines Dismantled . | . . . . Machines Sabotaged . | . . . . Overloaded Fab Kills . | . . . . Hacking | -11 -10 -10 -7 --------- Run | Yrd Mat Sub Rec Machines Accessed 15 | . 10 . 5 Terminals 8 | . 7 . 1 Fabricators . | . . . . Repair Stations 1 | . 1 . . Recycling Units 6 | . 2 . 4 Scanalyzers . | . . . . Garrison Access . | . . . . Total Hacks 39 | . 19 . 20 Successful 25 | . 11 . 14 Failed 13 | . 7 . 6 Catastrophic 1 | . 1 . . Database Lockouts 1 | . 1 . . Manual 17 | . 10 . 7 Terminals 22 | . 14 . 8 Fabricators . | . . . . Repair Stations 2 | . 2 . . Recycling Units 15 | . 3 . 12 Scanalyzers . | . . . . Garrison Access . | . . . . Terminal Hacks 9 | . 5 . 4 Robot Analysis 3 | . 1 . 2 Prototype ID Bank 2 | . 1 . 1 Terminal Index 1 | . 1 . . Locate Traps 1 | . 1 . . Hauler Manifests 1 | . 1 . . Zone Layout 1 | . . . 1 Fabricator Hacks . | . . . . Repair Station Hacks 2 | . 2 . . Scan Component 1 | . 1 . . Repair 1 | . 1 . . Recycling Unit Hacks 7 | . 1 . 6 Report Inventory 5 | . 1 . 4 Retrieve Components 2 | . . . 2 Scanalyzer . | . . . . Garrison Access Hacks . | . . . . Unauthorized Hacks 7 | . 3 . 4 Terminals 2 | . 1 . 1 Botnet 2 | . 1 . 1 Fabricators . | . . . . Repair Stations . | . . . . Recycling Units 5 | . 2 . 3 Tunnel 5 | . 2 . 3 Scanalyzers . | . . . . Garrison Access . | . . . . Data Cores Recovered . | . . . . Used . | . . . . Hacking Detections 12 | . 8 . 4 Full Trace Events 1 | . . . 1 Feedback Events . | . . . . Feedback Blocked . | . . . . Robot Schematics Acquired . | . . . . Robots Built . | . . . . Authchips . | . . . . Time . | . . . . Total Robot Build Rating . | . . . . Part Schematics Acquired . | . . . . Parts Built . | . . . . Authchips . | . . . . Time . | . . . . Total Part Build Rating . | . . . . Parts Repaired 1 | . 1 . . Time 26 | . 26 . . Parts Recycled . | . . . . Recycled Matter . | . . . . Retrieved Matter . | . . . . Retrieved Components 3 | . . . 3 Parts Scanalyzed . | . . . . Part Schematics Acquired . | . . . . Parts Damaged . | . . . . Bothacking | -11 -10 -10 -7 ------------ Run | Yrd Mat Sub Rec Used RIF Installer . | . . . . Robots Hacked . | . . . . Non-combat . | . . . . Combat . | . . . . Robot Hacks Applied . | . . . . Relay Couplers Released . | . . . . Fabnet Peak Effective % . | . . . . Robots Rewired . | . . . . Allies Hacked . | . . . . Hacks Repelled . | . . . . Allies | -11 -10 -10 -7 -------- Run | Yrd Mat Sub Rec Total Allies . | . . . . Largest Group . | . . . . Highest-Rated Group . | . . . . Highest-Rated Ally . | . . . . Total Orders . | . . . . Ally Attacks . | . . . . Total Damage . | . . . . Kills . | . . . . Allies Corrupted . | . . . . Allies Melted . | . . . . Intel | -11 -10 -10 -7 ------- Run | Yrd Mat Sub Rec Robot Analysis Total 3 | . 1 . 2 Derelict Logs Recovered . | . . . . Drone Launches . | . . . . Drone Recoveries . | . . . . Exploration | -11 -10 -10 -7 ------------- Run | Yrd Mat Sub Rec Turns Passed 4963 | 69 1966 2669 259 Spaces Moved 2044 | 23 1014 862 145 Core 48 | . . 48 . Treads 274 | . . 274 . Legs 454 | 23 431 . . Wheels 1268 | . 583 540 145 Hover . | . . . . Flight . | . . . . Fastest Speed 120 | 120 120 130 130 Average Speed 208 | 120 167 271 130 Slowest Speed 1400 | 120 400 1400 130 Overloaded Moves . | . . . . Propulsion Burnouts . | . . . . Robots Hopped . | . . . . Cave-ins Triggered . | . . . . Exploration Rate (%) 42 | 3 99 35 31 Regions Visited 3 Branch Regions 2 Pre-discovered Areas 5 | . 2 . 3 Known Exits Taken . | . . . . Unknown Exits Taken 3 | 1 1 1 . Scrap Searched . | . . . . Spaces Dug 34 | . . 34 . Terrain Destroyed 154 | . 24 130 . Melee . | . . . . Projectile . | . . . . AOE 154 | . 24 130 . Terrain Rammed . | . . . . Walls Destroyed . | . . . . Machines Disabled . | . . . . Actions | -11 -10 -10 -7 --------- Run | Yrd Mat Sub Rec Total 2539 | 50 1210 1086 193 Wait 241 | 10 106 121 4 Move 2041 | 22 1013 861 145 Hop . | . . . . Pick Up 44 | 2 29 7 6 Fast Attach 2 | . 1 1 . Attach 10 | 1 1 6 2 Detach . | . . . . Swap 34 | 1 14 17 2 Drop 19 | . 10 3 6 Fire 145 | 14 36 70 25 Melee . | . . . . Ram . | . . . . Kick . | . . . . Crush . | . . . . Escape Stasis . | . . . . Rewire 3 | . . . 3 Trap . | . . . . Miscellaneous . | . . . . Route ------- -11/Scrapyard -10/Materials (discovered 6 exits: [*Mat x3] / [*Min x2] / [*Sub]) -10/Subcaves -7/Recycling History --------- Turn | Location | Event 21 | -11/Scrapyard | Discovered new exit (range 3) 70 | -11/Scrapyard | Entered Materials 146 | -10/Materials | Discovered new exit (range 7) 339 | -10/Materials | Build established: Mutant 577 | -10/Materials | Discovered new exit (range 14) 962 | -10/Materials | Discovered new exit (range 8) 1413 | -10/Materials | Discovered new exit (range 16) 1726 | -10/Materials | Discovered new exit (range 10) 1867 | -10/Materials | Central database locked down 1949 | -10/Materials | Discovered new exit (range 12) 2000 | -10/Materials | Repaired Grenade Launcher 2036 | -10/Materials | Entered Subcaves 2111 | -10/Subcaves | Lost 3 parts (1p1n1w) 2784 | -10/Subcaves | Core integrity fell below 50% 4137 | -10/Subcaves | Core integrity fell below 20% 4693 | -10/Subcaves | Discovered new exit (range 9) 4705 | -10/Subcaves | Entered Recycling 4964 | -7/Recycling | Destroyed by L-41 Fighter with Axe Last Messages --------------- sustain a direct hit under some circumstances. 04843_ Dropped EM Pulse Gun. 04849_ Acquired Hvy. Flail. 04856_ R-06 Scavenger collects EM Pulse Gun. 04874_ R-06 Scavenger suffers critical hit (Burn). 04886_ Destroyed Com. Wheel. 04893_ System corrupted: IFF burst signal emitted. 04898_ R-06 Scavenger destroyed. 04900_ Acquired 80 matter. 04952_ U-05 Engineer builds a Door. 04958_ G-47 Trooper springs to life. 04959_ Y-54 Guardian springs to life. 04959_ P-60 Hacker springs to life. 04959_ Grenade Launcher destroyed. 04959_ L-41 Fighter springs to life. 04959_ Attempting to rewire S-27 Virus. 04960_ Y-54 Guardian springs to life. 04960_ Attempting to rewire S-27 Virus. Map ----- +----------------------------------------------------+ | ??????????????????????????????????? | | ??????????????????????????????????? | | ??????????????????????????????????? | | ??????????????????????????????????? | | ??????????????????????????????????# | | ??????????????????##############??# | | ??????????????????# #### | | ??????????????????# ##!! | | ??????????????????# ##! | | ??????????????????# ##!! | | ?????????????????## #### | | ?????????????????# #??# | | ?????????????????## #??# | | ????????????? ????# #??# | | ????????????? ????# #??# | | ????????????? ????# #??# | | ????????????? ????# #??# | | ????????????? ????# #?## | | ????????????? ????#######+######## | | ??########### ?????????# | | ??# ! l ]# #????????# | | ??# gY ! # #????????# | | ??# g] p ! # #????????# #/ ### | | ??# = *!# ????????# #/ #?## | | ??# Y b l # #????????# #####??# | | ??#!p Y @ # ########## ######## | | ??#! h # ## | | ??# d %+ ## | | ??#! Ys# ## | | ??# l ## ###### | | ??# u ## """ """ #????# | | ??# d ## """ """ #????# | | ??#![ i ## """ """ #????# | | ??# g ## """ """ #????# | | ??# g ## """ """ #??### | | ??# ! ## #??#"" | | ??############ #????? | | ?????????????# #######????? | | ?????????????######### #??????????? | | ?????????????????????? #??????????? | | ?????????????????????? #??????????? | | ???????????????????????#??????????? | | ??????????????????????????????????? | | ??????????????????????????????????? | | ??????????????????????????????????? | | ??????????????????????????????????? | | ??????????????????????????????????? | | ??????????????????????????????????? | | ??????????????????????????????????? | | ??????????????????????????????????? | +----------------------------------------------------+ Best States ------------- Heat Dissipation 35 Energy Generation 15 Energy Capacity 150 Matter Stores 300 Matter Capacity 300 Sight Range 21 Robot Scan Range 14 Terrain Scan Range 16 Terrain Scan Density 10 ECM Strength 1 Armor Coverage 150 Evasion (%) 55 Recoil Reduction 2 Item Schematics ----------------- None Robot Schematics ------------------ None Fabricated ------------ Nothing Alien Tech Used ----------------- None Achievements -------------- None Challenges ------------ None Game ------ Seed BoltCooledPurifier Manual? 0 Play Time 00:32:43 Cumulative 249.6 hours Start 2024.08.29 @ 02:26:34 End 2024.08.29 @ 02:58:01 Sessions 1 Manual Loads 0 Difficulty Rogue Special Mode None Game No. 185 Rogue 175 Adventurer 0 Explorer 10 Win Type - Total 3 Types 3/0/0/0/0/0/0/0/0 Lore% 62 Gallery% 69 Achievement% 53 Wizard Run 0 Options --------- Layout 1 ASCII 0 Keyboard 0 Movement Arrows Keybinds 1 Fullscreen 1 Font 24/Smallcaps Map View 50x35 Zoom Use 0% Tactical HUD 1 Map Filters NONE Filters NONE Steam 1 RUN: d37f2f19-bd75-4654-8725-92f4482bcb23